fUST/lending_fUST_20250822
["ID","MTS","AMOUNT","RATE_DAILY","PERIOD"]
[380511240,1755797455033,-168.0,0.00021182,2]
[380511241,1755797455043,-260.0,0.00021182,2]
[380511242,1755797455052,-6295.11884119,0.000212,30]
[380511243,1755797455061,-255.0,0.00021234,2]
[380511244,1755797455071,-160.0,0.00021265,2]
[380511245,1755797455079,-480.0,0.00021266,2]
[380511246,1755797455089,-480.0,0.00021266,2]
[380511247,1755797455098,-480.0,0.00021266,2]
[380511248,1755797455107,-540.18,0.00021266,2]
[380511249,1755797455116,-480.0,0.00021266,2]
[380511250,1755797455125,-480.0,0.00021266,2]
[380511251,1755797455135,-825.66,0.00021266,2]
[380511252,1755797455143,-743.68,0.00021266,2]
[380511253,1755797455153,-480.0,0.00021266,2]
[380511254,1755797455162,-589.64311636,0.00021266,2]
[380511255,1755797455171,-1813.05,0.00021266,2]
[380511256,1755797455180,-480.0,0.00021266,2]
[380511257,1755797455189,-578.39,0.00021266,2]
[380511258,1755797455199,-610.33,0.00021266,2]
[380511259,1755797455208,-480.0,0.00021266,2]
[380511260,1755797455219,-1741.58,0.00021266,2]
[380511261,1755797455228,-503.69,0.00021266,2]
[380511262,1755797455238,-480.0,0.00021266,2]
[380511263,1755797455247,-512.51,0.00021266,2]
[380511264,1755797455257,-480.0,0.00021266,2]
[380511265,1755797455267,-716.44,0.00021266,2]
[380511266,1755797455276,-967.43,0.00021266,2]
[380511267,1755797455286,-717.68,0.00021266,2]
[380511268,1755797455295,-6848.12,0.00021266,2]
[380511269,1755797455305,-736.01,0.00021266,2]
[380511270,1755797455315,-1732.99,0.00021266,2]
[380511271,1755797455326,-852.34,0.00021266,2]
[380511272,1755797455335,-4019.45,0.00021266,2]
[380511273,1755797455345,-1030.75,0.00021266,2]
[380511274,1755797455354,-480.0,0.00021266,2]
[380511275,1755797455363,-1647.15,0.00021266,2]
[380511276,1755797455373,-1369.83,0.00021266,2]
[380511277,1755797455382,-480.0,0.00021266,2]
[380511278,1755797455392,-480.0,0.00021266,2]
[380511279,1755797455401,-2785.35,0.00021266,2]
[380511280,1755797455411,-898.2,0.00021266,2]
[380511281,1755797455420,-662.76,0.00021266,2]
[380511282,1755797455430,-480.0,0.00021266,2]
[380511283,1755797455439,-480.0,0.00021266,2]
[380511284,1755797455449,-1070.54,0.00021266,2]
[380511285,1755797455460,-3727.42,0.00021266,2]
[380511286,1755797455470,-151.0,0.00021266,2]
[380511287,1755797455479,-480.0,0.00021266,2]
[380511288,1755797455489,-151.0,0.00021266,2]
[380511289,1755797455498,-151.0,0.00021266,2]
[380511290,1755797455509,-151.0,0.00021266,2]
[380511291,1755797455519,-1519.0,0.00021267,2]
[380511292,1755797455528,-420.0,0.00021267,2]
[380511293,1755797455538,-805.24713778,0.00021268,2]
[380511294,1755797455547,-480.0,0.00021269,2]
[380511295,1755797455556,-662.32,0.00021269,2]
[380511296,1755797455566,-904.74,0.00021269,2]
[380511297,1755797455575,-480.0,0.00021269,2]
[380511298,1755797455584,-480.0,0.00021269,2]
[380511299,1755797455594,-480.0,0.00021269,2]
[380511300,1755797455603,-480.0,0.00021269,2]
[380511301,1755797455612,-480.0,0.00021269,2]
[380511302,1755797455621,-480.0,0.00021269,2]
[380511303,1755797455631,-480.0,0.00021269,2]
[380511304,1755797455640,-472.16967012,0.00021269,2]
[380511305,1755797455649,-684.51,0.00021269,2]
[380511306,1755797455660,-906.65,0.00021269,2]
[380511307,1755797455669,-729.6,0.00021269,2]
[380511308,1755797455678,-480.0,0.00021269,2]
[380511309,1755797455687,-480.0,0.00021269,2]
[380511310,1755797455696,-529.98,0.00021269,2]
[380511311,1755797455706,-480.0,0.00021269,2]
[380511312,1755797455720,-480.0,0.00021269,2]
[380511313,1755797455730,-480.0,0.00021269,2]
[380511314,1755797455739,-480.0,0.00021269,2]
[380511315,1755797455750,-563.78,0.00021269,2]
[380511316,1755797455761,-480.0,0.00021269,2]
[380511317,1755797455770,-480.0,0.00021269,2]
[380511318,1755797455780,-480.0,0.00021269,2]
[380511319,1755797455792,-779.37,0.00021269,2]
[380511320,1755797455803,-480.0,0.00021269,2]
[380511321,1755797455812,-480.0,0.00021269,2]
[380511322,1755797455822,-480.0,0.00021281,2]
[380511323,1755797455832,-1302.22,0.00021281,2]
[380511324,1755797455841,-480.0,0.00021281,2]
[380511325,1755797455850,-480.0,0.00021281,2]
[380511326,1755797455860,-480.0,0.00021282,2]
[380511327,1755797455869,-480.0,0.00021282,2]
[380511328,1755797455881,-480.0,0.00021282,2]
[380511329,1755797455891,-480.0,0.00021282,2]
[380511330,1755797455901,-480.0,0.00021282,2]
[380511331,1755797455911,-480.0,0.00021282,2]
[380511332,1755797455920,-480.0,0.00021282,2]
[380511333,1755797455930,-480.0,0.00021282,2]
[380511334,1755797455939,-480.0,0.00021282,2]
[380511335,1755797455949,-480.0,0.00021282,2]
[380511336,1755797455960,-480.0,0.00021282,2]
[380511337,1755797455969,-714.35,0.00021282,2]
[380511339,1755797455978,-480.0,0.00021282,2]
[380511341,1755797455987,-480.0,0.00021282,2]
[380511343,1755797455996,-480.0,0.00021282,2]
[380511345,1755797456005,-480.0,0.00021282,2]
[380511347,1755797456015,-480.0,0.00021282,2]
[380511349,1755797456023,-160.97037689,0.00021315,2]
[380511351,1755797456033,-200.370403,0.00021315,2]
[380511352,1755797456042,-2000.0,0.00021316,2]
[380511354,1755797456051,-413.03212136,0.00021321,2]
[380511356,1755797456060,-1000.0,0.00021321,2]
[380511358,1755797456070,-1000.0,0.00021321,2]
[380511359,1755797456079,-1000.0,0.00021321,2]
[380511361,1755797456089,-1000.0,0.00021321,2]
[380511363,1755797456098,-1680.0,0.00021369,2]
[380511365,1755797456107,-305.9823344,0.00021402,2]
[380511367,1755797456118,-301.86107626,0.00021412,2]
[380511369,1755797456127,-179286.19323931,0.00021413,2]
[380511370,1755797456136,-1500.0,0.00021416,2]
[380511372,1755797456145,-2000.0,0.00021416,2]
[380511374,1755797456155,-2000.0,0.00021416,2]
[380511376,1755797456164,-2000.0,0.00021416,2]
[380511378,1755797456173,-200.370403,0.00021425,2]
[380511380,1755797456182,-480.0,0.00021439,2]
[380511381,1755797456191,-747.37,0.00021439,2]
[380511383,1755797456201,-968.79,0.00021439,2]
[380511385,1755797456212,-751.51,0.00021439,2]
[380511386,1755797456221,-4465.99,0.00021439,2]
[380511388,1755797456230,-496.84,0.0002144,2]
[380511390,1755797456239,-480.0,0.0002144,2]
[380511392,1755797456248,-480.0,0.0002144,2]
[380511394,1755797456258,-1345.02,0.0002144,2]
[380511396,1755797456270,-2124.36,0.0002144,2]
[380511398,1755797456280,-1224.53,0.0002144,2]
[380511400,1755797456289,-480.0,0.0002144,2]
[380511402,1755797456298,-480.0,0.0002144,2]
[380511403,1755797456307,-480.0,0.0002144,2]
[380511405,1755797456316,-480.0,0.0002144,2]
[380511407,1755797456326,-1262.82,0.0002144,2]
[380511409,1755797456335,-1395.19,0.0002144,2]
[380511410,1755797456344,-480.0,0.0002144,2]
[380511412,1755797456353,-480.0,0.0002144,2]
[380511414,1755797456362,-1824.98,0.0002144,2]
[380511416,1755797456372,-776.68,0.0002144,2]
[380511418,1755797456381,-480.0,0.0002144,2]
[380511420,1755797456390,-400.48168531,0.0002144,2]
[380511422,1755797456405,-154.65831469,0.0002144,2]
[380511423,1755797456414,-480.0,0.0002144,2]
[380511424,1755797456423,-5299.52,0.0002144,2]
[380511425,1755797456433,-2220.01,0.0002144,2]
[380511426,1755797456442,-1184.95,0.0002144,2]
[380511427,1755797456451,-1275.6,0.0002144,2]
[380511428,1755797456462,-437.06947552,0.0002144,2]
[380511429,1755797456471,-327.05252741,0.0002144,2]
[380511430,1755797456481,-480.0,0.0002144,2]
[380511431,1755797456491,-821.32,0.0002144,2]
[380511432,1755797456500,-480.0,0.0002144,2]
[380511433,1755797456509,-1677.65,0.0002144,2]
[380511434,1755797456518,-5269.04,0.0002144,2]
[380511435,1755797456527,-480.0,0.0002144,2]
[380511436,1755797456536,-480.0,0.0002144,2]
[380511437,1755797456545,-531.14389087,0.0002144,2]
[380511438,1755797456554,-986.09,0.0002144,2]
[380511439,1755797456563,-4029.63,0.0002144,2]
[380511440,1755797456574,-2535.91,0.0002144,2]
[380511441,1755797456583,-480.0,0.0002144,2]
[380511442,1755797456594,-914.18,0.0002144,2]
[380511443,1755797456603,-673.2,0.0002144,2]
[380511444,1755797456612,-954.93,0.0002144,2]
[380511445,1755797456622,-2426.89,0.0002144,2]
[380511446,1755797456631,-837.24,0.0002144,2]
[380511447,1755797456640,-1358.67,0.0002144,2]
[380511448,1755797456649,-891.4,0.0002144,2]
[380511449,1755797456658,-1065.61,0.0002144,2]
[380511450,1755797456668,-1238.92,0.0002144,2]
[380511451,1755797456676,-467.4178295,0.0002144,2]
[380511452,1755797456686,-1254.99,0.0002144,2]
[380511453,1755797456695,-480.0,0.0002144,2]
[380511454,1755797456705,-480.0,0.0002144,2]
[380511455,1755797456722,-1683.94,0.0002144,2]
[380511456,1755797456731,-1300.44,0.0002144,2]
[380511457,1755797456740,-3698.0,0.0002144,2]
[380511458,1755797456749,-480.0,0.0002144,2]
[380511459,1755797456760,-613.78,0.00021441,2]
[380511460,1755797456769,-480.0,0.00021441,2]
[380511461,1755797456779,-480.0,0.00021441,2]
[380511462,1755797456788,-196.58710948,0.00021441,2]
[380511463,1755797456797,-480.0,0.00021441,2]
[380511464,1755797456806,-480.0,0.00021441,2]
[380511465,1755797456815,-519.02,0.00021441,2]
[380511466,1755797456826,-517.96,0.00021441,2]
[380511467,1755797456835,-513.05,0.00021441,2]
[380511468,1755797456844,-480.0,0.00021441,2]
[380511469,1755797456854,-3286.76,0.00021441,2]
[380511470,1755797456863,-2432.73,0.00021441,2]
[380511471,1755797456873,-480.0,0.00021441,2]
[380511472,1755797456883,-1016.44,0.00021441,2]
[380511473,1755797456892,-1160.44,0.00021441,2]
[380511474,1755797456901,-480.0,0.00021441,2]
[380511475,1755797456911,-480.0,0.00021441,2]
[380511476,1755797456921,-11228.3,0.00021441,2]
[380511477,1755797456930,-11389.72,0.00021441,2]
[380511478,1755797456939,-1435.74,0.00021441,2]
[380511479,1755797456948,-830.57,0.00021441,2]
[380511480,1755797456958,-2172.53,0.00021441,2]
[380511481,1755797456968,-569.90672362,0.00021441,2]
[380511482,1755797456977,-480.0,0.00021441,2]
[380511483,1755797456986,-154.509781,0.0002148,7]
[380511484,1755797456996,-154.509781,0.000215,2]
[380511485,1755797457005,-160.97037689,0.00021507,2]
[380511486,1755797457015,-200.370403,0.00021507,2]
[380511487,1755797457025,-2000.0,0.00021516,2]
[380511488,1755797457035,-2000.0,0.00021516,2]
[380511489,1755797457044,-1762.72319095,0.00021516,2]
[380511490,1755797457053,-500.0,0.00021516,2]
[380511491,1755797457063,-1000.0,0.00021521,2]
[380511492,1755797457073,-1000.0,0.00021521,2]
[380511493,1755797457083,-423.64953265,0.00021521,2]
[380511494,1755797457092,-1000.0,0.00021521,2]
[380511495,1755797457102,-1000.0,0.00021521,2]
[380511496,1755797457111,-574.45545086,0.00021521,2]
[380511497,1755797457121,-1000.0,0.00021521,2]
[380511498,1755797457131,-572.43883789,0.00021521,2]
[380511499,1755797457141,-1000.0,0.00021521,2]
[380511500,1755797457149,-1000.0,0.00021521,2]
[380511501,1755797457159,-1000.0,0.00021521,2]
[380511502,1755797457168,-517.08452299,0.00021521,2]
[380511503,1755797457178,-1000.0,0.00021521,2]
[380511504,1755797457186,-1000.0,0.00021521,2]
[380511505,1755797457195,-922.4672154,0.00021521,2]
[380511506,1755797457205,-1000.0,0.00021521,2]
[380511507,1755797457215,-1000.0,0.00021521,2]
[380511508,1755797457225,-500.8067803,0.00021521,2]
[380511509,1755797457235,-502.02985701,0.00021521,2]
[380511510,1755797457244,-1000.0,0.00021521,2]
[380511511,1755797457254,-1000.0,0.00021521,2]
[380511512,1755797457263,-1000.64693669,0.00021521,2]
[380511513,1755797457274,-1000.0,0.00021521,2]
[380511514,1755797457283,-1000.0,0.00021521,2]
[380511515,1755797457292,-1000.0,0.00021521,2]
[380511516,1755797457302,-501.30889282,0.00021521,2]
[380511517,1755797457311,-1000.0,0.00021521,2]
[380511518,1755797457321,-1000.0,0.00021521,2]
[380511519,1755797457330,-1000.9478934,0.00021521,2]
[380511520,1755797457340,-1000.0,0.00021521,2]
[380511521,1755797457350,-1000.0,0.00021521,2]
[380511522,1755797457359,-500.62477378,0.00021521,2]
[380511523,1755797457368,-1001.57858725,0.00021521,2]
[380511524,1755797457378,-1002.95426666,0.00021521,2]
[380511525,1755797457387,-1000.0,0.00021521,2]
[380511526,1755797457397,-1000.0,0.00021521,2]
[380511527,1755797457406,-480.0,0.0002154,2]
[380511528,1755797457416,-480.0,0.0002154,2]
[380511529,1755797457425,-480.0,0.0002154,2]
[380511530,1755797457435,-540.18,0.0002154,2]
[380511531,1755797457445,-526.50061295,0.0002154,2]
[380511532,1755797457454,-480.0,0.0002154,2]
[380511533,1755797457465,-825.66,0.0002154,2]
[380511534,1755797457474,-743.68,0.0002154,2]
[380511535,1755797457483,-480.0,0.0002154,2]
[380511536,1755797457493,-1813.05,0.0002154,2]
[380511537,1755797457503,-480.0,0.0002154,2]
[380511538,1755797457512,-578.39,0.0002154,2]
[380511539,1755797457522,-610.33,0.0002154,2]
[380511540,1755797457531,-480.0,0.0002154,2]
[380511541,1755797457541,-804.15787991,0.0002154,2]
[380511542,1755797457553,-937.42212009,0.0002154,2]
[380511543,1755797457563,-503.69,0.0002154,2]
[380511544,1755797457572,-480.0,0.0002154,2]
[380511545,1755797457582,-26.89525467,0.0002154,2]
[380511551,1755797457707,-463.37818225,0.00019521,2]
[380511552,1755797457722,-480.0,0.00019522,2]
[380511553,1755797457731,-480.0,0.00019523,2]
[380511554,1755797457741,-123.94830479,0.0002017,2]
[380511556,1755797459356,-160.60608691,0.0002017,2]
[380511557,1755797459368,-195.4456083,0.0002017,2]
[380511558,1755797459378,-480.0,0.00020444,2]
[380511559,1755797459388,-480.0,0.00020718,2]
[380511560,1755797459397,-7620.37345841,0.00020835,2]
[380511561,1755797459407,-480.0,0.00020992,2]
[380511562,1755797459418,-37.56511778,0.00021266,2]
[380511563,1755797459822,-480.0,0.00019522,2]
[380511564,1755797459835,-480.0,0.00019522,2]
[380511565,1755797459855,-244.4723052,0.00019523,2]
[380511566,1755797459867,-480.0,0.00019625,2]
[380511567,1755797459876,-480.0,0.00019625,2]
[380511568,1755797459886,-480.0,0.00019625,2]
[380511569,1755797459895,-480.0,0.00019796,2]
[380511570,1755797459905,-618.82,0.00019797,2]
[380511571,1755797459915,-480.0,0.00019899,2]
[380511572,1755797459924,-340.0,0.00019909,2]
[380511573,1755797459934,-233.96,0.0002007,2]
[380511574,1755797459943,-618.82,0.00020071,2]
[380511575,1755797459952,-618.82,0.00020345,2]
[380511576,1755797459963,-618.82,0.00020619,2]
[380511577,1755797459972,-618.82,0.00020893,2]
[380511578,1755797459981,-618.82,0.00021167,2]
[380511579,1755797459991,-247.51716603,0.00021266,2]
[380511580,1755797460046,-194.91771619,0.00021266,2]
[380511581,1755797460056,-71.33228384,0.00021266,2]
[380511582,1755797460068,-79.66771616,0.00021266,2]
[380511583,1755797460077,-618.82,0.00021441,2]
[380511584,1755797460087,-485.61474533,0.0002154,2]
[380511585,1755797460096,-480.0,0.0002154,2]
[380511586,1755797460106,-716.44,0.0002154,2]
[380511587,1755797460115,-967.43,0.0002154,2]
[380511588,1755797460125,-717.68,0.0002154,2]
[380511589,1755797460135,-6848.12,0.0002154,2]
[380511590,1755797460144,-426.22753851,0.0002154,2]
[380511592,1755797460342,-480.0,0.00019522,2]
[380511594,1755797460352,-480.0,0.00019625,2]
[380511595,1755797460361,-500.0,0.00019797,2]
[380511596,1755797460371,-504.0,0.00019899,2]
[380511597,1755797460381,-271.72,0.00020173,2]
[380511598,1755797460390,-309.78246149,0.0002154,2]
[380511599,1755797460400,-1669.69749635,0.0002154,2]
[380511600,1755797460416,-63.29250365,0.0002154,2]
[380511601,1755797460426,-852.34,0.0002154,2]
[380511602,1755797460436,-4019.45,0.0002154,2]
[380511603,1755797460446,-1030.75,0.0002154,2]
[380511604,1755797460455,-480.0,0.0002154,2]
[380511605,1755797460467,-1647.15,0.0002154,2]
[380511606,1755797460478,-1369.83,0.0002154,2]
[380511607,1755797460488,-480.0,0.0002154,2]
[380511608,1755797460498,-480.0,0.0002154,2]
[380511609,1755797460507,-2785.35,0.0002154,2]
[380511610,1755797460516,-898.2,0.0002154,2]
[380511611,1755797460526,-662.76,0.0002154,2]
[380511612,1755797460536,-480.0,0.0002154,2]
[380511613,1755797460548,-480.0,0.0002154,2]
[380511614,1755797460557,-1070.54,0.0002154,2]
[380511615,1755797460567,-3727.42,0.0002154,2]
[380511616,1755797460576,-480.0,0.0002154,2]
[380511617,1755797460586,-480.0,0.0002154,2]
[380511618,1755797460595,-480.0,0.00021543,2]
[380511619,1755797460605,-662.32,0.00021543,2]
[380511620,1755797460614,-904.74,0.00021543,2]
[380511621,1755797460623,-480.0,0.00021543,2]
[380511622,1755797460633,-480.0,0.00021543,2]
[380511623,1755797460642,-480.0,0.00021543,2]
[380511624,1755797460652,-480.0,0.00021543,2]
[380511625,1755797460663,-480.0,0.00021543,2]
[380511626,1755797460672,-480.0,0.00021543,2]
[380511627,1755797460681,-480.0,0.00021543,2]
[380511628,1755797460690,-684.51,0.00021543,2]
[380511629,1755797460700,-906.65,0.00021543,2]
[380511630,1755797460710,-729.6,0.00021543,2]
[380511631,1755797460724,-480.0,0.00021543,2]
[380511632,1755797460733,-480.0,0.00021543,2]
[380511633,1755797460742,-529.98,0.00021543,2]
[380511634,1755797460752,-480.0,0.00021543,2]
[380511635,1755797460763,-480.0,0.00021543,2]
[380511636,1755797460772,-480.0,0.00021543,2]
[380511637,1755797460781,-480.0,0.00021543,2]
[380511638,1755797460793,-563.78,0.00021543,2]
[380511639,1755797460814,-540.53604013,0.00021543,2]
[380511640,1755797460830,-480.0,0.00021543,2]
[380511641,1755797460839,-480.0,0.00021543,2]
[380511642,1755797460849,-779.37,0.00021543,2]
[380511643,1755797460859,-480.0,0.00021543,2]
[380511644,1755797460869,-283.67433786,0.00021543,2]
[380511645,1755797460878,-480.0,0.00021555,2]
[380511646,1755797460887,-480.0,0.00021555,2]
[380511647,1755797460895,-480.0,0.00021556,2]
[380511648,1755797460905,-480.0,0.00021556,2]
[380511649,1755797460913,-528.98374894,0.00021556,2]
[380511650,1755797460922,-480.0,0.00021556,2]
[380511651,1755797460931,-480.0,0.00021556,2]
[380511652,1755797460939,-480.0,0.00021556,2]
[380511653,1755797460948,-480.0,0.00021556,2]
[380511654,1755797460957,-480.0,0.00021556,2]
[380511655,1755797460967,-480.0,0.00021556,2]
[380511656,1755797460976,-480.0,0.00021556,2]
[380511657,1755797460985,-714.35,0.00021556,2]
[380511658,1755797460994,-480.0,0.00021556,2]
[380511659,1755797461003,-480.0,0.00021556,2]
[380511660,1755797461011,-480.0,0.00021556,2]
[380511661,1755797461020,-480.0,0.00021556,2]
[380511662,1755797461029,-480.0,0.00021556,2]
[380511663,1755797461038,-151.0,0.00021568,2]
[380511664,1755797461047,-151.0,0.00021568,2]
[380511665,1755797461055,-151.0,0.00021568,2]
[380511666,1755797461064,-151.0,0.00021568,2]
[380511667,1755797461073,-151.0,0.00021568,2]
[380511668,1755797461082,-151.0,0.00021568,2]
[380511669,1755797461091,-151.0,0.00021568,2]
[380511670,1755797461099,-151.0,0.00021568,2]
[380511671,1755797461108,-151.0,0.00021568,2]
[380511672,1755797461117,-151.0,0.00021568,2]
[380511673,1755797461126,-151.0,0.00021568,2]
[380511674,1755797461135,-151.0,0.00021568,2]
[380511675,1755797461144,-151.0,0.00021568,2]
[380511676,1755797461153,-151.0,0.00021568,2]
[380511677,1755797461161,-151.0,0.00021568,2]
[380511678,1755797461170,-118.4453619,0.00021568,2]
[380511679,1755797462073,-32.5546381,0.00021568,2]
[380511680,1755797462083,-325.87143018,0.00021568,2]
[380511681,1755797462098,-480.0,0.00019522,2]
[380511682,1755797462107,-1174.12856982,0.00021568,2]
[380511683,1755797462116,-1500.0,0.00021568,2]
[380511684,1755797462125,-1500.0,0.00021568,2]
[380511685,1755797462135,-1500.0,0.00021568,2]
[380511686,1755797462144,-1500.0,0.00021568,2]
[380511687,1755797462154,-1500.0,0.00021568,2]
[380511688,1755797462164,-1500.0,0.00021568,2]
[380511689,1755797462173,-1500.0,0.00021568,2]
[380511690,1755797462182,-200.370403,0.00021616,2]
[380511691,1755797462191,-151.0,0.00021669,2]
[380511692,1755797462200,-163.04303834,0.00021669,2]
[380511693,1755797462209,-651.51998121,0.00021669,2]
[380511694,1755797462220,-214.36884481,0.00021669,2]
[380511695,1755797462230,-856.61790384,0.00021669,2]
[380511696,1755797462239,-160.97037689,0.00021699,2]
[380511697,1755797462249,-154.509781,0.00021707,10]
[380511698,1755797462258,-480.0,0.00021713,2]
[380511699,1755797462268,-747.37,0.00021713,2]
[380511700,1755797462277,-968.79,0.00021713,2]
[380511701,1755797462286,-751.51,0.00021713,2]
[380511702,1755797462295,-4465.99,0.00021713,2]
[380511703,1755797462305,-496.84,0.00021714,2]
[380511704,1755797462314,-365.60165,0.00021714,2]
[380511705,1755797462325,-114.39835,0.00021714,2]
[380511706,1755797462334,-480.0,0.00021714,2]
[380511707,1755797462343,-1345.02,0.00021714,2]
[380511708,1755797462352,-2124.36,0.00021714,2]
[380511709,1755797462361,-1224.53,0.00021714,2]
[380511710,1755797462370,-480.0,0.00021714,2]
[380511711,1755797462379,-151.0,0.00021714,2]
[380511712,1755797462388,-480.0,0.00021714,2]
[380511713,1755797462397,-480.0,0.00021714,2]
[380511714,1755797462407,-151.0,0.00021714,2]
[380511715,1755797462415,-480.0,0.00021714,2]
[380511716,1755797462425,-151.0,0.00021714,2]
[380511717,1755797462434,-151.0,0.00021714,2]
[380511718,1755797462444,-1262.82,0.00021714,2]
[380511719,1755797462453,-1395.19,0.00021714,2]
[380511720,1755797462462,-151.0,0.00021714,2]
[380511721,1755797462473,-151.0,0.00021714,2]
[380511722,1755797462482,-151.0,0.00021714,2]
[380511723,1755797462492,-299.492,0.00021714,2]
[380511724,1755797462501,-480.0,0.00021714,2]
[380511725,1755797462510,-151.0,0.00021714,2]
[380511726,1755797462519,-480.0,0.00021714,2]
[380511727,1755797462528,-1824.98,0.00021714,2]
[380511728,1755797462537,-776.68,0.00021714,2]
[380511729,1755797462546,-480.0,0.00021714,2]
[380511730,1755797462555,-555.14,0.00021714,2]
[380511731,1755797462564,-480.0,0.00021714,2]
[380511732,1755797462573,-151.0,0.00021714,2]
[380511733,1755797462582,-151.0,0.00021714,2]
[380511734,1755797462591,-151.0,0.00021714,2]
[380511735,1755797462600,-5299.52,0.00021714,2]
[380511736,1755797462609,-2220.01,0.00021714,2]
[380511737,1755797462618,-151.0,0.00021714,2]
[380511738,1755797462627,-151.0,0.00021714,2]
[380511739,1755797462636,-1184.95,0.00021714,2]
[380511740,1755797462645,-1275.6,0.00021714,2]
[380511741,1755797462653,-480.0,0.00021714,2]
[380511742,1755797462662,-821.32,0.00021714,2]
[380511743,1755797462672,-480.0,0.00021714,2]
[380511744,1755797462681,-1677.65,0.00021714,2]
[380511745,1755797462690,-5269.04,0.00021714,2]
[380511746,1755797462699,-480.0,0.00021714,2]
[380511747,1755797462708,-480.0,0.00021714,2]
[380511748,1755797462723,-986.09,0.00021714,2]
[380511749,1755797462732,-4029.63,0.00021714,2]
[380511750,1755797462741,-2535.91,0.00021714,2]
[380511751,1755797462750,-480.0,0.00021714,2]
[380511752,1755797462761,-914.18,0.00021714,2]
[380511753,1755797462770,-673.2,0.00021714,2]
[380511754,1755797462779,-954.93,0.00021714,2]
[380511755,1755797462789,-2426.89,0.00021714,2]
[380511756,1755797462798,-837.24,0.00021714,2]
[380511757,1755797462807,-1358.67,0.00021714,2]
[380511758,1755797462817,-891.4,0.00021714,2]
[380511759,1755797462826,-1065.61,0.00021714,2]
[380511760,1755797462836,-1238.92,0.00021714,2]
[380511761,1755797462847,-1254.99,0.00021714,2]
[380511762,1755797462855,-480.0,0.00021714,2]
[380511763,1755797462864,-480.0,0.00021714,2]
[380511764,1755797462873,-1683.94,0.00021714,2]
[380511765,1755797462882,-1300.44,0.00021714,2]
[380511766,1755797462891,-3698.0,0.00021714,2]
[380511767,1755797462901,-480.0,0.00021714,2]
[380511768,1755797462911,-613.78,0.00021715,2]
[380511769,1755797462921,-480.0,0.00021715,2]
[380511770,1755797462930,-480.0,0.00021715,2]
[380511771,1755797462940,-480.0,0.00021715,2]
[380511772,1755797462949,-480.0,0.00021715,2]
[380511773,1755797462958,-519.02,0.00021715,2]
[380511774,1755797462968,-517.96,0.00021715,2]
[380511775,1755797462977,-513.05,0.00021715,2]
[380511776,1755797462986,-480.0,0.00021715,2]
[380511777,1755797462995,-2432.73,0.00021715,2]
[380511778,1755797463005,-480.0,0.00021715,2]
[380511779,1755797463014,-1016.44,0.00021715,2]
[380511780,1755797463023,-1160.44,0.00021715,2]
[380511781,1755797463033,-480.0,0.00021715,2]
[380511782,1755797463043,-480.0,0.00021715,2]
[380511783,1755797463053,-11228.3,0.00021715,2]
[380511784,1755797463062,-11389.72,0.00021715,2]
[380511785,1755797463072,-1435.74,0.00021715,2]
[380511786,1755797463082,-151.0,0.00021715,2]